Cogmind - Beta 16 --- EXPLORER MODE // 2025.11.12 @ 13:11:19 Player: K.K.Y. Result: Destroyed by S-10 Pest with Light Assault Rifle Performance ------------- Evolutions (0) 0 Regions Visited (2) 400 Robots Destroyed (21) 105 Value Destroyed (516) 516 Prototype IDs (0) 0 Alien Tech Used (0) 0 Bonus (0) 0 TOTAL SCORE: 1021 Bonus ------- None Cogmind --------- Core Integrity 0/250 Matter 163/300 Energy 99/100 System Corruption 0% Temperature Cool (0) Movement Rolling (140) Ox4 Location -10/Subcaves Parts ------- > --- POWER (1) -------- (None) > --- PROPULSION (3) --- Wheel > --- UTILITY (2) ------ High-capacity Storage Unit Structural Scanner > --- WEAPON (2) ------- Light Cannon > --- INVENTORY (20) --- Subdweller Monowheel High-capacity Matter Pod (200) Sensor Array Improved Terrain Scanner SUBCON Basin (Full) Peak State ------------ > --- POWER ------------ Ion Engine > --- PROPULSION ------- Aluminum Leg Aluminum Leg Aluminum Leg > --- UTILITY ---------- High-capacity Storage Unit Structural Scanner > --- WEAPON ----------- Light Cannon Mining Laser > --- INVENTORY -------- High-capacity Matter Pod Sensor Array Improved Terrain Scanner EM Pulse Gun Light Cannon SUBCON Basin [Rating: 26] Favorites ----------- Power Ion Engine Engine Ion Engine Propulsion Aluminum Leg Leg Aluminum Leg Wheel Wheel Utility Structural Scanner Device Structural Scanner Storage High-capacity Storage Unit Weapon Assault Rifle Energy Gun EM Pulse Gun Ballistic Gun Assault Rifle Ballistic Cannon Light Cannon Special Weapon Mining Laser Build | -11 -10 -10 ------- Run | Yrd Mat Sub Slots Evolved 1 | . 1 . Power . | . . . Propulsion 1 | . 1 . Utility . | . . . Weapon . | . . . Parts Attached 20 | 7 3 10 Power 2 | 1 . 1 Engine 2 | 1 . 1 Core . | . . . Reactor . | . . . Propulsion 8 | 2 1 5 Treads . | . . . Leg 4 | 2 1 1 Wheel 4 | . . 4 Hover . | . . . Flight . | . . . Utility 3 | 2 1 . Device 1 | 1 . . Storage 2 | 1 1 . Processor . | . . . Hackware . | . . . Protection . | . . . Artifact . | . . . Weapon 7 | 2 1 4 Energy Gun 1 | . . 1 Energy Cannon . | . . . Ballistic Gun 2 | 2 . . Ballistic Cannon 2 | . 1 1 Launcher . | . . . Special Weapon 2 | . . 2 Impact Weapon . | . . . Slashing Weapon . | . . . Piercing Weapon . | . . . Special Melee Weapon . | . . . Unidentified Prototypes . | . . . Parts Lost 11 | . . 11 Power 2 | . . 2 Propulsion 5 | . . 5 Utility . | . . . Weapon 4 | . . 4 Highest Loss Streak 5 | . . 5 To Critical Strikes . | . . . Average Backups 7 | 1 8 6 Power . | . . . Propulsion . | . . . Utility 3 | . 3 3 Weapon 3 | . 4 2 Tool/Special . | . . . Unused Backups 11 | . 1 10 Power . | . . . Propulsion . | . . . Utility 7 | . 1 6 Weapon 3 | . . 3 Tool/Special 1 | . . 1 Average Slot Usage (%) 90 | . 99 79 Engine 9 | . 12 6 Leg 30 | . 36 22 Wheel 2 | . . 4 Device 12 | . 12 12 Storage 12 | . 12 12 Ballistic Gun 12 | . 24 . Ballistic Cannon 5 | . . 11 Special Weapon 3 | . . 7 Peak Build Rating 26 | 7 10 26 Average Rating 15 | 5 8 22 On Entrance 5 | . 7 10 Avg Prop Armor Cover (%) . | . . . Naked Turns . | . . . Heaviest Build 51 | 20 51 50 Greatest Support 40 | 20 30 40 Greatest Overweight (x) 4 | . 1 4 Average Overweight (x) . | . . 1 Largest Inventory Capacity 20 | 10 20 20 Average Capacity 16 | 8 13 20 Most Carried 20 | 5 17 20 Average Carried 13 | 1 8 19 Final Capacity 20 | 10 20 20 Final Carried 19 | 1 17 19 Class Distribution -------------------- 100% | Hacker-Mutant Dominant Class ---------------- Hacker-Mutant | -10/Materials Hacker-Mutant | -10/Subcaves Resources | -11 -10 -10 ----------- Run | Yrd Mat Sub Matter Collected 1043 | 267 597 179 Remotely . | . . . Salvage Created 548 | . 519 29 Parts 39 | . 33 6 Haulers Intercepted 1 | . 1 . Recyclers Shooed . | . . . Parts Field Recycled . | . . . Retrieved Matter . | . . . Parts Self-Destructed . | . . . Prevented . | . . . Parts Restored . | . . . Kills | -11 -10 -10 ------- Run | Yrd Mat Sub Combat Hostiles Destroyed 14 | . 9 5 Guns 9 | . 9 . Cannons 5 | . . 5 Classes Destroyed 9 | . 8 1 Builder 2 | . 2 . Tunneler 1 | . 1 . Hauler 1 | . 1 . Recycler 1 | . 1 . Watcher 2 | . 2 . Swarmer 4 | . 4 . Grunt 4 | . 4 . Artisan 2 | . . 2 Subdweller 6 | . 1 5 Best Kill Streak 4 | . 4 1 Combat Bots Only 4 | . 4 1 Max Kills in Single Turn 1 | . 1 1 Gunslinging . | . . . Exploded . | . . . Melee . | . . . Uniques/NPCs Destroyed . | . . . Combat | -11 -10 -10 -------- Run | Yrd Mat Sub Hostile Shots Fired 148 | . 56 92 Missed 51 | . 20 31 Hits 97 | . 36 61 Projectile 97 | . 36 61 Critical Strikes 1 | . 1 . Damage Taken 1196 | . 303 893 Core 250 | . 32 218 Absorbed by Shields . | . . . Ignored by Resistances 700 | . 194 506 Core Remaining (%) 100 | 100 . . Volleys Fired 135 | . 61 74 Largest 2 | . 2 2 Hottest 130 | . 50 130 Shots Fired 201 | . 122 79 Gun 129 | . 120 9 Cannon 66 | . 2 64 Launcher . | . . . Special 6 | . . 6 Kinetic 186 | . 122 64 Thermal 6 | . . 6 Explosive . | . . . Electromagnetic 9 | . . 9 Robot Hit Streak 50 | . 25 50 Robot Miss Streak 3 | . 3 1 Penetration Max . | . . . Secondary Targets 2 | . 2 . Max Gunslinging Chain 1 | . 1 . Shots Hit Robots 159 | . 88 71 Core Hits 36 | . 25 11 Critical Kills . | . . . Critical Parts Destroyed 1 | . 1 . Critical Strikes 3 | . 1 2 Destroy 1 | . 1 . Blast 2 | . . 2 Melee Attacks . | . . . Impact . | . . . Slashing . | . . . Piercing . | . . . Sneak Attacks . | . . . Combat Hostiles . | . . . Follow-up Attacks . | . . . Damage Inflicted 2144 | . 1091 1053 Guns 1091 | . 1091 . Cannons 957 | . . 957 Explosions . | . . . Melee . | . . . Ramming . | . . . Kinetic 2048 | . 1091 957 Thermal 96 | . . 96 Explosive . | . . . Electromagnetic . | . . . Impact . | . . . Slashing . | . . . Piercing . | . . . Highest Corruption . | . . . Average Corruption . | . . . Corruption Purged . | . . . Corruption Blocked . | . . . Overload Shots . | . . . Overflow Damage . | . . . Projectiles . | . . . Explosions . | . . . Melee . | . . . Knockbacks 15 | . . 15 Impact . | . . . Kinetic 15 | . . 15 Secondary . | . . . Self-Inflicted Damage . | . . . Shots . | . . . Rammed . | . . . Targets Rammed 1 | . 1 . Kicked 1 | . 1 . Crushed . | . . . Highest Temperature 2 | . 2 . Average Temperature 2 | . 2 . Received Heat Transfer 420 | . 66 354 Siege Activations . | . . . Martial Activations . | . . . Shielding Activations . | . . . Robots Disrupted . | . . . Combat Hostiles . | . . . Robots Corrupted . | . . . Combat Hostiles . | . . . Parts Fried . | . . . Impact Corruptions . | . . . Robots Melted . | . . . Combat Hostiles . | . . . Parts Melted 2 | . 2 . Heat Transferred 200 | . . 200 Parts Sabotaged . | . . . Parts Stolen . | . . . Parts Stripped . | . . . Power Chain Reactions . | . . . Alert | -11 -10 -10 ------- Run | Yrd Mat Sub Maximum Alert Level . | . . . Low Security (%) 100 | 100 100 . Level 1 . | . . . Level 2 . | . . . Level 3 . | . . . Level 4 . | . . . Level 5 . | . . . High Security . | . . . Max Security . | . . . Peak Influence 85 | . 85 . Initial . | . . . Average 5 | . 5 . Influence Increases 298 | . 268 30 Destroy 0b10 Robot/C 160 | . 160 . Destroy 0b10 Robot/NC 35 | . 35 . Destroy Leader 36 | . 36 . Successful Hack 24 | . 24 . Disable Machine 12 | . 12 . Destroy Structure 1 | . 1 . Lose Combat Pursuer 30 | . . 30 Influence Decreases 268 | . 268 . Time Decay 259 | . 259 . Purge Threat 9 | . 9 . Squads Dispatched . | . . . Investigation . | . . . Extermination . | . . . Reinforcement . | . . . Assault . | . . . Garrison . | . . . Intercept . | . . . Searches Triggered . | . . . Construction Impeded . | . . . Haulers Reinforced . | . . . Active Scanning Responses . | . . . Cargo Convoy Interrupts . | . . . Stealth | -11 -10 -10 --------- Run | Yrd Mat Sub Distress Signals 2 | . 2 . Communications Jammed . | . . . Distress Signals . | . . . Times Spotted 25 | . 16 9 Peak Tracking Total 6 | . 4 6 Tactical Retreats 3 | . 2 1 Traps | -11 -10 -10 ------- Run | Yrd Mat Sub Traps Triggered 4 | . 2 2 Indirectly . | . . . Trap Hack Attempts . | . . . Triggered . | . . . Disarmed 3 | . 3 . Reprogrammed . | . . . Reused . | . . . Traps Extracted . | . . . Installed . | . . . Triggered . | . . . Machines | -11 -10 -10 ---------- Run | Yrd Mat Sub Machines Disabled 3 | . 3 . Max in Single Turn 1 | . 1 . Machines Repaired . | . . . Machines Dismantled . | . . . Machines Sabotaged . | . . . Overloaded Fab Kills . | . . . Hacking | -11 -10 -10 --------- Run | Yrd Mat Sub Machines Accessed 8 | . 5 3 Terminals 5 | . 5 . Fabricators . | . . . Repair Stations . | . . . Recycling Units . | . . . Scanalyzers . | . . . Garrison Access . | . . . Total Hacks 15 | . 10 5 Successful 14 | . 9 5 Failed 1 | . 1 . Catastrophic . | . . . Database Lockouts . | . . . Manual 5 | . 5 . Terminals 10 | . 10 . Fabricators . | . . . Repair Stations . | . . . Recycling Units . | . . . Scanalyzers . | . . . Garrison Access . | . . . Terminal Hacks 14 | . 9 5 Record 3 | . . 3 Open Door 1 | . . 1 Emergency Access Points 1 | . 1 . Unreport Threat 1 | . 1 . Disarm Traps 1 | . 1 . Hauler Manifests 1 | . 1 . Zone Layout 5 | . 5 . Release Object 1 | . . 1 Fabricator Hacks . | . . . Repair Station Hacks . | . . . Recycling Unit Hacks . | . . . Scanalyzer . | . . . Garrison Access Hacks . | . . . Unauthorized Hacks . | . . . Terminals . | . . . Fabricators . | . . . Repair Stations . | . . . Recycling Units . | . . . Scanalyzers . | . . . Garrison Access . | . . . Data Cores Recovered . | . . . Used . | . . . Hacking Detections 3 | . 3 . Full Trace Events . | . . . Feedback Events . | . . . Feedback Blocked . | . . . Robot Schematics Acquired . | . . . Robots Built . | . . . Authchips . | . . . Time . | . . . Total Robot Build Rating . | . . . Part Schematics Acquired . | . . . Parts Built . | . . . Authchips . | . . . Time . | . . . Total Part Build Rating . | . . . Part Studies Acquired . | . . . Parts Repaired . | . . . Time . | . . . Parts Recycled . | . . . Recycled Matter . | . . . Retrieved Matter . | . . . Retrieved Components . | . . . Parts Scanalyzed . | . . . Part Schematics Acquired . | . . . Parts Damaged . | . . . Bothacking | -11 -10 -10 ------------ Run | Yrd Mat Sub Used RIF Installer . | . . . Robots Hacked . | . . . Non-combat . | . . . Combat . | . . . Robot Hacks Applied . | . . . Relay Couplers Released . | . . . Fabnet Peak Effective % . | . . . Robots Rewired . | . . . Allies Hacked . | . . . Hacks Repelled . | . . . Allies | -11 -10 -10 -------- Run | Yrd Mat Sub Total Allies . | . . . Largest Group . | . . . Highest-Rated Group . | . . . Highest-Rated Ally . | . . . Total Orders . | . . . Ally Attacks . | . . . Total Damage . | . . . Kills . | . . . Allies Corrupted . | . . . Allies Melted . | . . . Intel | -11 -10 -10 ------- Run | Yrd Mat Sub Active Infowar (turns) 3157 | 42 1625 1490 Structural 3157 | 42 1625 1490 Robot Analysis Total . | . . . Derelict Logs Recovered . | . . . Drone Launches . | . . . Drone Recoveries . | . . . Exploration | -11 -10 -10 ------------- Run | Yrd Mat Sub Turns Passed 3172 | 57 1625 1490 Spaces Moved 1579 | 40 932 607 Core 12 | 12 . . Treads . | . . . Legs 1415 | 28 932 455 Wheels 152 | . . 152 Hover . | . . . Flight . | . . . Fastest Speed 50 | 50 120 95 Average Speed 165 | 99 144 202 Slowest Speed 400 | 120 190 400 Overloaded Moves . | . . . Propulsion Burnouts . | . . . Robots Hopped . | . . . Potential Cave-ins . | . . . Cave-ins Triggered . | . . . Exploration Rate (%) 44 | 4 95 33 Regions Visited 2 Branch Regions 1 Pre-discovered Areas 1 | . . 1 Known Exits Taken 2 | 1 1 . Unknown Exits Taken . | . . . Scrap Searched . | . . . Spaces Dug 1 | . . 1 Terrain Destroyed 1 | . . 1 Melee . | . . . Projectile 1 | . . 1 AOE . | . . . Terrain Rammed . | . . . Walls Destroyed . | . . . Machines Disabled . | . . . Actions | -11 -10 -10 --------- Run | Yrd Mat Sub Total 1929 | 57 1092 780 Wait 149 | 4 73 72 Move 1577 | 39 931 607 Hop . | . . . Pick Up 31 | 7 20 4 Fast Attach 4 | 1 . 3 Attach 11 | 6 1 4 Detach . | . . . Swap 6 | . 2 4 Drop 15 | . 3 12 Fire 135 | . 61 74 Melee . | . . . Ram . | . . . Kick 1 | . 1 . Crush . | . . . Escape Stasis . | . . . Rewire . | . . . Trap . | . . . Miscellaneous . | . . . Route ------- -11/Scrapyard -10/Materials (discovered 6 exits: *Mat x3 / *Min x2 / *Sub) -10/Subcaves History --------- Turn | Location | Event 12 | -11/Scrapyard | Identified exit to Materials 12 | -11/Scrapyard | Discovered exit to Materials (range 15) 58 | -11/Scrapyard | Entered Materials 58 | -10/Materials | Evolved 1 slot: Propulsion x1 317 | -10/Materials | Build established: Hacker-Mutant 347 | -10/Materials | Identified exit to Materials 347 | -10/Materials | Discovered exit to Materials (range 16) 463 | -10/Materials | Discovered exit to Materials (range 11) 658 | -10/Materials | Derelicts attacked the area 823 | -10/Materials | Identified exit to Mines 823 | -10/Materials | Discovered exit to Mines (range 15) 846 | -10/Materials | Discovered exit to Mines (range 14) 1215 | -10/Materials | Discovered exit to Materials (range 16) 1406 | -10/Materials | Identified exit to Subcaves 1406 | -10/Materials | Discovered exit to Subcaves (range 5) 1683 | -10/Materials | Entered Subcaves 1688 | -10/Subcaves | Shifting Twisted Machinery released Shrapnel Trap 1689 | -10/Subcaves | Shifting Twisted Machinery released Battle Rifle 1883 | -10/Subcaves | Found SUBCON Basin 1982 | -10/Subcaves | A swath of the cavern ceiling suddenly collapsed 2055 | -10/Subcaves | Visited Clippyterm 2061 | -10/Subcaves | Learned Research machine intel 2111 | -10/Subcaves | Learned location of Zion (-6) 2111 | -10/Subcaves | Met a Zionite searching for "candidates" 2166 | -10/Subcaves | Lost 3 parts (1p1n1w) 2797 | -10/Subcaves | Ambushed by angry Subdweller bent on revenge 2844 | -10/Subcaves | Core integrity fell below 50% 2872 | -10/Subcaves | Lost 5 parts (2n3w) 2895 | -10/Subcaves | Core integrity fell below 20% 3173 | -10/Subcaves | Destroyed by S-10 Pest with Light Assault Rifle Last Messages --------------- 03038_ Destroyed Scrap Shield. 03039_ 90-MGL(R) heat spikes uncontrollably. 03039_ 90-MGL(R) overheating. 03041_ 90-MGL(R) heat damages Sub. Monowheel. 03042_ 90-MGL(R) destroyed. 03044_ Acquired 2 matter. 03047_ Acquired 4 matter. 03048_ Acquired 8 matter. 03050_ Acquired 19 matter. 03054_ Subatomizers dissect the Lgt. Ion Engine. 03064_ Acquired 4 matter. 03067_ Acquired 6 matter. 03072_ Acquired 4 matter. 03078_ Acquired 6 matter. 03083_ Acquired 4 matter. 03092_ Acquired 2 matter. 03093_ Acquired 8 matter. 03095_ Acquired 1 matter. 03096_ Acquired 4 matter. 03171_ Lgt. Ion Engine destroyed. Map ----- +----------------------------------------------------+ | ?????????????????## " ####### ####?## | | ?????????????????## ###?### ### ###### # | | ?????????????????## ##??##### #### ####### | | ?????????????????## ########## ## #### | | ?????????????????## ########### #### | | ?????????????????##" # ##?### % ! #### | | ????????????????### ###??## & ### | | ?????????????#####""" # # ###??### #### #### | | ?????????????#####""""###" ###??#### ##### ## | | ?????????????## "#"#"" ##???### ####??? ## | | ?????????????### """"" ###???##"""###???? ### | | ?????????????## ##""""#" ####??##" "##????? #### | | ?????????????### ####"##" ########"""# ?????####? | | ?????????????## "" ####### ##?????????? | | ?????????????#### " "#########?????????? | | ?????????????##### "" ########?????????? | | ???????????????### """ ###???????????????? | | ??????????????### "" ####???????????????? | | ?????????????#### ## ###????????????????? | | ?????????????### ### ##?????????????????? | | ?????????????## ### ###?????????????????? | | ?????????????## ## """"" #####?????????????????? | | ?????????????## ## """ #####??????????????????? | | ?????????????## ## " ###????????????????????? | | ?????????????## # ## ###########????????????? | | ?????????????########### @ ##########????????????? | | ?????????????########### "???????? | | ???????????????????### s ??????? | | ??????????????????### s "???????? | | ??????????????????## ####### ???????? | | ??????????????????## ###### ??? ???????? | | ??????????????????### ##????????????????? | | ??????????????????#### ##????????????????? | | ???????????????????### ##????????????????? | | ???????????????????? ##????????????????? | | ???????????????????? ##????????????????? | | ??????????????????? ##????????????????? | | ??????????????????? ###????????????????? | | ?????????????????? ###????????????????? | | ???????????????????? ###?????????????????? | | ??????????????????????? ######?????????????????? | | ???????????????????????? #####???????????????????? | | ???????????????????????? ##??????????????????????? | | ?????????????????????????????????????????????????? | | ?????????????????????????????????????????????????? | | ?????????????????????????????????????????????????? | | ?????????????????????????????????????????????????? | | ?????????????????????????????????????????????????? | | ?????????????????????????????????????????????????? | | ?????????????????????????????????????????????????? | +----------------------------------------------------+ Best States ------------- Heat Dissipation 25 Energy Generation 10 Energy Capacity 250 Matter Stores 300 Matter Capacity 300 Sight Range 16 Terrain Scan Density 10 Resistance: KI 35 Resistance: TH 35 Resistance: EX 35 Resistance: EM 35 Resistance: I 35 Resistance: S 35 Resistance: P 35 Evasion (%) 55 Offensive Hacking 20 Item Schematics ----------------- None Robot Schematics ------------------ None Fabricated ------------ Nothing Repaired ---------- Nothing Studied --------- None Alien Tech Used ----------------- None Achievements -------------- None Challenges ------------ None Game ------ Seed AdvancedEtherialChronowheel Manual? 0 Play Time 00:20:38 Cumulative 78.7 hours Start 2025.11.12 @ 12:56:53 End 2025.11.12 @ 13:11:19 Sessions 1 Manual Loads 0 Difficulty Explorer Special Mode None Game No. 69 Rogue 0 Adventurer 0 Explorer 69 Win Type - Total 0 Types 0/0/0/0/0/0/0/0/0/0 Lore% 51 Gallery% 54 Achievement% 42 Wizard Run 0 Options --------- Layout 1 ASCII 0 Keyboard 0 Movement Mouse Keybinds 0 Fullscreen 1 Font 24/Smallcaps Map View 50x35 Zoom Use 0% Tactical HUD 1 Map Filters NONE Filters NONE Steam 1 RUN: 386a3813-0edb-4b0c-95e3-15038858444e